Cogmind - Beta 14 @@@ ROGUE MODE // 2024.10.01 @ 20:12:05 Player: THN-L0C Result: Destroyed by C-40 Crusher with Compactor Performance ------------- Evolutions (6) 3000 Regions Visited (19) 3800 Robots Destroyed (204) 1020 Value Destroyed (7439) 7439 Prototype IDs (41) 820 Alien Tech Used (0) 0 Bonus (1075) 1075 TOTAL SCORE: 17154 Bonus ------- High Alert Combat Kills 269 Follower Combat Kills 1713 Network Hubs Disabled 200 Aligned with FarCom 300 Built Enhanced Grunts 300 A7 Reached Mainframe 300 Met R17 at Cetus 500 Friendly Fire -2507 Cogmind --------- Core Integrity 0/1150 Matter 95/300 Energy 100/100 System Corruption 45% Temperature Cool (0) Movement Core (50) Location -4/Waste Parts ------- > --- POWER (2) -------- (None) > --- PROPULSION (5) --- (None) > --- UTILITY (8) ------ Scrap Engine > --- WEAPON (4) ------- (None) > --- INVENTORY (5) ---- High-capacity Storage Unit Advanced Particle Charger Cloak of Protection Experimental Thermal Shield Plasma Cutter Peak State ------------ > --- POWER ------------ Fusion-Fission Core > --- PROPULSION ------- Wheeled Centrium-FC Exoskeleton > --- UTILITY ---------- Armored Scrap Engine Advanced Cooling System Advanced Cooling System Huge Storage Unit Improved Kinecellerator Transmission Jammer Centrium Medium Armor Plating > --- WEAPON ----------- Hpw. EM Tesla Construct/C Hyp. Ballistic Penetrator Construct/G Power Maul > --- INVENTORY -------- Quantum Reactor Gravmag System High-capacity Storage Unit Advanced Energy Well Matter Compressor Makeshift Terrain Scanner Improved Target Analyzer Core Analyzer Advanced Particle Charger Improved Weapon Cycler Phase Shifter Cloak of Protection Experimental Thermal Shield Experimental Thermal Shield Improved System Shield Disruptor Cannon Heavy Flak Cannon Improved Proton Missile Launcher Heavy Shock Bomb Launcher Improved Remote Datajack Plasma Cutter Makeshift Sword [Rating: 131] Favorites ----------- Power Constructs Engine Light Deuterium Engine Power Core Constructs Reactor Quantum Reactor Propulsion Constructs Treads Armored Treads Wheel Constructs Hover Unit Airjet Utility Armored Scrap Engine Device Armored Scrap Engine Storage High-capacity Storage Unit Processor Core Analyzer Hackware System Shield Protection Hardened Medium Armor Plating Weapon Constructs Energy Gun Heavy Particle Gun Energy Cannon Constructs Ballistic Gun Constructs Ballistic Cannon Constructs Launcher Grenade Launcher Special Weapon Plasma Cutter Impact Weapon Heavy Hammer Slashing Weapon Makeshift Sword Piercing Weapon Heavy Pick Build | -11 -10 -10 -10 -9 -8 -8 -8 -6 -6 -6 -6 -5 -5 -5 -5 -5 -5 -4 -4 ------- Run | Yrd Mat Min Exi Min Mat Sto Rec Fac Low Low Zio Pro Fac Ext Cet Arc Hub Fac Was Slots Evolved 12 | . . . . . 4 . . 4 . . . . 2 . . . . 2 . Power 1 | . . . . . . . . 1 . . . . . . . . . . . Propulsion 3 | . . . . . . . . 2 . . . . 1 . . . . . . Utility 6 | . . . . . 3 . . 1 . . . . . . . . . 2 . Weapon 2 | . . . . . 1 . . . . . . . 1 . . . . . . Parts Attached 169 | 7 10 8 2 5 22 13 11 14 4 3 24 6 2 6 7 7 4 12 2 Power 11 | . 1 4 . 1 1 2 1 . . . . . . . . . . 1 . Engine 6 | . . 4 . 1 . 1 . . . . . . . . . . . . . Core 4 | . 1 . . . 1 1 1 . . . . . . . . . . . . Reactor 1 | . . . . . . . . . . . . . . . . . . 1 . Propulsion 11 | 2 2 1 . 1 2 3 . . . . . . . . . . . . . Treads 5 | 2 . 1 . . . 2 . . . . . . . . . . . . . Leg . | . . . . . . . . . . . . . . . . . . . . Wheel 3 | . 2 . . 1 . . . . . . . . . . . . . . . Hover 3 | . . . . . 2 1 . . . . . . . . . . . . . Flight . | . . . . . . . . . . . . . . . . . . . . Utility 68 | 2 1 . 2 . 8 1 6 9 2 . 12 2 1 2 5 6 4 5 . Device 36 | 1 . . . . 3 . 4 4 1 . 8 2 1 2 4 2 2 2 . Storage 7 | 1 1 . 2 . . . . . 1 . . . . . 1 1 . . . Processor 7 | . . . . . . . . 3 . . 2 . . . . . . 2 . Hackware 7 | . . . . . 1 1 . 2 . . . . . . . 2 1 . . Protection 11 | . . . . . 4 . 2 . . . 2 . . . . 1 1 1 . Artifact . | . . . . . . . . . . . . . . . . . . . . Weapon 79 | 3 6 3 . 3 11 7 4 5 2 3 12 4 1 4 2 1 . 6 2 Energy Gun 17 | 2 3 1 . . 4 5 2 . . . . . . . . . . . . Energy Cannon 2 | . . . . . . . . . . . . . . . . . . 2 . Ballistic Gun 9 | 1 . 1 . 3 3 . . . . . . . . . 1 . . . . Ballistic Cannon 1 | . . . . . . . . . . . . . . . . . . 1 . Launcher 15 | . 1 1 . . 2 . 1 3 1 2 3 . 1 . . . . . . Special Weapon 12 | . . . . . . . 1 . . . 4 3 . 2 1 . . . 1 Impact Weapon 8 | . . . . . 1 2 . 1 . . . . . . . 1 . 2 1 Slashing Weapon 9 | . 2 . . . 1 . . . . . 3 1 . 1 . . . 1 . Piercing Weapon 6 | . . . . . . . . 1 1 1 2 . . 1 . . . . . Special Melee Weapon . | . . . . . . . . . . . . . . . . . . . . Unidentified Prototypes 11 | . . . . . 3 1 1 . . . 2 . . . 3 1 . . . Parts Lost 44 | . 4 5 . . 2 2 3 2 . . 7 . 2 1 . . . 8 8 Power 5 | . 1 . . . . 1 1 . . . . . . . . . . 2 . Propulsion 6 | . 2 1 . . . . . 1 . . 1 . . . . . . . 1 Utility 12 | . . 1 . . . 1 2 1 . . 2 . . . . . . 1 4 Weapon 21 | . 1 3 . . 2 . . . . . 4 . 2 1 . . . 5 3 Highest Loss Streak 7 | . 2 4 . . 1 2 2 1 . . 1 . 1 1 . . . 7 3 To Critical Strikes 3 | . . . . . . . . . . . . . . . . . . . 3 Average Slot Usage (%) 67 | . 89 78 85 85 95 97 86 62 66 66 63 58 55 55 63 58 58 55 34 Engine 2 | . . 13 14 14 7 2 5 3 . . 1 6 4 1 . . . . . Core 1 | . 9 . . . 1 6 3 2 6 6 . . . . 5 . 1 1 . Reactor 2 | . . . . . . . . . . . 4 . . 2 . 4 3 3 1 Treads 3 | . 18 9 14 14 1 9 16 1 . . . . . . 4 4 5 2 . Leg 3 | . . . . . . . . . 6 6 5 6 2 1 . . . . . Device 12 | . 14 . . . 16 13 15 14 12 13 11 13 11 10 15 13 11 19 6 Storage 6 | . 14 14 14 14 9 9 9 6 6 6 6 6 5 5 5 5 5 5 2 Processor 9 | . . . . . . . . 9 13 13 13 13 11 11 5 5 . 1 5 Hackware 1 | . . . . . 2 11 9 . . . . . . . . 3 7 . . Protection 1 | . . . . . 12 9 6 . . . . . . . . . 3 5 1 Energy Gun 7 | . 6 2 . . 3 21 12 2 8 10 9 . . 3 2 . . . . Ballistic Gun 3 | . 13 10 14 26 20 . . 4 2 . . 4 3 2 13 6 4 . 4 Launcher 1 | . 7 13 14 1 . . 3 . 2 4 . . . . . . . . . Impact Weapon 1 | . . . . . . 6 3 4 . . . . . . . 4 5 3 . Piercing Weapon 2 | . . . . . . . . 1 3 1 4 . . . . . . . . Peak Build Rating 131 | 6 10 6 8 12 39 40 56 76 79 86 95 86 87 98 115 121 123 131 110 Average Rating 76 | 4 7 5 6 10 30 37 41 62 78 81 87 82 82 89 99 116 119 120 66 On Entrance 59 | . 6 6 6 7 12 37 37 47 76 79 86 83 82 85 95 115 116 116 100 Naked Turns . | . . . . . . . . . . . . . . . . . . . . Heaviest Build 146 | 9 31 29 47 33 54 45 51 46 75 77 88 70 73 82 100 136 146 139 125 Greatest Support 195 | 40 40 20 10 16 16 40 40 76 76 109 117 68 85 166 195 195 149 149 68 Greatest Overweight (x) 14 | 2 10 2 4 2 3 14 2 3 . 1 1 1 1 1 . . . 1 1 Average Overweight (x) . | . . 1 2 1 2 2 . 1 . . . . . . . . . . . Largest Inventory Capacity 25 | 8 15 15 15 15 15 15 15 15 20 20 20 20 20 20 20 25 25 25 25 Average Capacity 18 | 7 9 15 15 15 15 15 15 15 17 20 20 20 20 20 20 23 25 25 16 Most Carried 25 | 1 8 9 12 15 15 15 15 15 16 20 20 20 20 20 20 25 24 23 17 Average Carried 17 | . 5 6 8 14 14 14 14 14 15 17 19 19 18 19 19 23 21 21 11 Final Capacity 25 | 8 15 15 15 15 15 15 15 15 20 20 20 20 20 20 20 25 25 25 5 Final Carried 24 | 1 7 7 10 15 15 15 15 15 16 19 20 18 20 20 20 24 21 17 5 Scrap Engine Consumption 407 | . . . . . . . 36 42 12 8 136 7 10 75 21 15 16 28 1 Constructs Created 15 | . . . . . . . 3 1 . . 2 . 1 4 . . . 1 3 Constructs Modified 158 | . . . . . . . 8 14 7 4 58 3 3 23 9 11 7 10 1 Class Distribution -------------------- 73% | Construct 10% | Mutant Dominant Class ---------------- Mutant | -10/Materials Mutant | -10/Mines Mutant | -10/Exiles Derelict-Mutant | -9/Mines Derelict-Skirmisher | -8/Materials Assassin | -8/Storage Mutant | -8/Recycling Construct | -6/Factory Construct | -6/Lower Caves Construct | -6/Lower Caves Construct | -6/Zion Construct | -5/Proximity Caves Scavenger-Construct | -5/Factory Construct | -5/Extension Construct | -5/Cetus Construct | -5/Archives Construct | -5/Hub_04(d) Construct | -4/Factory Construct | -4/Waste Resources | -11 -10 -10 -10 -9 -8 -8 -8 -6 -6 -6 -6 -5 -5 -5 -5 -5 -5 -4 -4 ----------- Run | Yrd Mat Min Exi Min Mat Sto Rec Fac Low Low Zio Pro Fac Ext Cet Arc Hub Fac Was Matter Collected 5438 | 285 510 92 150 196 702 125 168 513 126 146 1178 65 137 190 225 210 224 196 . Remotely . | . . . . . . . . . . . . . . . . . . . . Salvage Created 10165 | 115 453 90 . . 741 105 320 408 565 770 2767 291 336 1126 214 616 602 646 . Parts 526 | 4 39 7 . . 35 5 13 22 21 22 184 16 19 46 6 15 34 38 . Haulers Intercepted 2 | . . . . . 2 . . . . . . . . . . . . . . Recyclers Shooed 9 | 1 5 . . . . . . . . . . . . . . . 2 1 . Parts Field Recycled . | . . . . . . . . . . . . . . . . . . . . Retrieved Matter . | . . . . . . . . . . . . . . . . . . . . Parts Self-Destructed 23 | . . . . . . . . . 7 10 2 4 . . . . . . . Prevented 13 | . . . . . . . . . 5 3 . 5 . . . . . . . Kills | -11 -10 -10 -10 -9 -8 -8 -8 -6 -6 -6 -6 -5 -5 -5 -5 -5 -5 -4 -4 ------- Run | Yrd Mat Min Exi Min Mat Sto Rec Fac Low Low Zio Pro Fac Ext Cet Arc Hub Fac Was Combat Hostiles Destroyed 130 | . 11 4 . . 14 . 5 10 13 11 17 10 8 9 3 . 8 7 . Melee 7 | . . . . . . . . 3 . . 1 . . 2 . . . 1 . Guns 43 | . 5 . . . 14 . 3 2 2 6 3 1 2 4 1 . . . . Cannons 35 | . . . . . . . . 1 . 1 11 6 3 2 1 . 8 2 . AOE 36 | . 6 4 . . . . 2 2 10 4 1 3 3 . . . . 1 . Classes Destroyed 23 | 2 5 1 . . 2 . 3 . . 1 9 . . . . . . . . Worker 6 | . 3 . . . . 1 . . . . . . . 1 . . 1 . . Builder 9 | . 5 . . . . 3 . . . . . . . . . . . 1 . Tunneler 3 | 2 . . . . . . . . . . . . . . . . . 1 . Hauler 2 | . . . . . 2 . . . . . . . . . . . . . . Recycler 8 | 1 . 1 . . 1 . . . . . . . . 4 . . . 1 . Operator 15 | . 1 . . . 1 . . 1 . . . . . . . 9 1 2 . Watcher 7 | . 2 . . . 1 1 . . . . . . . . . . 3 . . Swarmer 34 | . . 2 . . 4 . . 3 8 5 . 7 4 . . . 1 . . Grunt 38 | . 11 2 . . 9 . . . 4 5 . . 1 2 . . 4 . . Duelist 2 | . . . . . . . . . . . . . . 1 . . . 1 . Sentry 16 | . . . . . 1 . 1 5 1 1 . . . 3 . . 1 3 . Hunter 5 | . . . . . . . . . . . . 3 . 2 . . . . . Programmer 11 | . . . . . . . 1 2 . . . . 3 . . . 2 3 . Behemoth 1 | . . . . . . . . . . . . . . 1 . . . . . Cetus Guard 3 | . . . . . . . . . . . . . . . 3 . . . . Enhanced Grunt 3 | . . . . . . . . . . . . . . . . 3 . . . Explorer 1 | . . . . . . . . . . . 1 . . . . . . . . Scientist 1 | . . . . . . . 1 . . . . . . . . . . . . Scrapper 3 | . . . . . . . 3 . . . . . . . . . . . . Zionite 93 | . . . . . . . . . . . 93 . . . . . . . . Packrat 2 | . . . . . . . . . . 2 . . . . . . . . . Samaritan 1 | . . . . . . . . . . 1 . . . . . . . . . Tinkerer 5 | . . . . . . . . . . . 5 . . . . . . . . Wasp 1 | . . . . . . . . . . . 1 . . . . . . . . Thug 3 | . . . . . . . . . . . 2 . . . . 1 . . . Savage 1 | . . . . . . . . . . . 1 . . . . . . . . Butcher 3 | . . . . . . . . . . . 3 . . . . . . . . Guerrilla 1 | . . . . . . . . . . . 1 . . . . . . . . Marauder 1 | . . . . . . . . . . . 1 . . . . . . . . Fireman 2 | . . . . . . . . . . . 2 . . . . . . . . Mutant 5 | . . . . . . . . . . . 5 . . . . . . . . Best Kill Streak 6 | 3 4 3 . . 4 2 3 2 4 4 5 5 4 4 2 4 4 6 . Combat Bots Only 5 | . 3 2 . . 4 . 3 2 4 4 2 5 4 3 2 . 2 2 . Max Kills in Single Turn 3 | 1 2 2 . . 2 1 2 2 3 2 2 3 1 2 1 1 2 3 . Gunslinging 1 | . . . . . 1 . . . . . . . . . . . . . . Exploded 3 | . 2 2 . . . . 2 2 3 2 1 3 1 . . . . 1 . Melee 1 | . . . . . . . . 1 . . 1 . . 1 . . . 1 . Uniques/NPCs Destroyed . | . . . . . . . . . . . . . . . . . . . . Combat | -11 -10 -10 -10 -9 -8 -8 -8 -6 -6 -6 -6 -5 -5 -5 -5 -5 -5 -4 -4 -------- Run | Yrd Mat Min Exi Min Mat Sto Rec Fac Low Low Zio Pro Fac Ext Cet Arc Hub Fac Was Hostile Shots Fired 1155 | . 64 19 . . 59 30 38 242 42 80 218 64 63 32 15 4 33 123 29 Missed 383 | . 18 2 . . 18 12 10 95 16 35 77 17 22 7 7 . 6 39 2 Damage Taken 15437 | . 681 239 . . 655 276 607 1094 390 606 3397 680 771 479 203 104 611 2266 2378 Core 2354 | . 94 52 . . 48 15 65 189 34 104 435 81 20 25 . 29 . 205 958 Absorbed by Shields 467 | . . . . . . . 28 180 . . . . . 185 74 . . . . Regen/Repaired (Parts) 4545 | . . . . . . . 65 371 178 256 1776 83 314 653 124 127 267 176 155 Core Remaining (%) 61 | 100 . . . 41 . . 76 . . . . . . . . . 92 . . Volleys Fired 833 | 5 63 13 . . 42 6 17 16 21 39 396 17 25 25 18 14 39 21 56 Largest 4 | 2 2 2 . . 3 3 3 2 3 3 3 2 2 4 4 4 1 2 3 Hottest 272 | 60 80 80 . . 115 179 179 106 191 167 138 108 68 220 255 215 92 272 164 Shots Fired 1248 | 10 99 15 . . 119 16 31 29 27 73 459 26 43 57 64 47 39 33 61 Gun 738 | 10 83 9 . . 118 16 22 22 9 52 194 9 19 43 50 42 . . 40 Cannon 423 | . . . . . . . . 4 1 16 247 12 18 13 14 5 39 33 21 Launcher 69 | . 16 6 . . 1 . 2 3 17 5 13 . 6 . . . . . . Special 18 | . . . . . . . 7 . . . 5 5 . 1 . . . . . Kinetic 688 | 5 45 . . . 114 . . 13 1 16 297 12 37 9 22 25 30 1 61 Thermal 329 | 5 38 9 . . 4 16 22 13 9 52 72 . . 35 28 17 9 . . Explosive 54 | . 16 6 . . 1 . . 3 . 5 18 5 . . . . . . . Electromagnetic 170 | . . . . . . . 2 . 17 . 72 9 6 13 14 5 . 32 . Robot Hit Streak 25 | 7 9 13 . . 14 2 14 6 5 11 17 4 12 25 5 4 5 12 6 Robot Miss Streak 5 | 1 3 1 . . 5 2 2 2 2 4 4 2 4 3 3 4 4 2 3 Penetration Max 1 | . . . . . . . . . . . . . . . . 1 1 . 1 Secondary Targets 4 | . . . . . 2 . . . . . 2 . . . . . . . . Max Gunslinging Chain 1 | . . . . . 1 . . . . . 1 . . . . . . . . Shots Hit Robots 865 | 9 64 9 . . 85 9 21 50 13 47 303 15 35 50 40 38 21 28 28 Core Hits 411 | 3 35 9 . . 41 1 6 12 17 25 138 13 20 30 16 13 10 18 4 Critical Kills 7 | . . . . . . . . 1 1 . 2 . . . . 2 1 . . Critical Parts Destroyed 19 | . . . . . . . . 4 . 1 9 . . . . 4 1 . . Critical Strikes 43 | . . . . . . 1 2 6 1 2 15 . . 2 1 6 3 2 2 Burn 5 | . . . . . . . 2 . . . 2 . . . 1 . . . . Destroy 21 | . . . . . . . . . 1 1 11 . . 1 . 2 3 . 2 Smash 11 | . . . . . . 1 . 6 . . . . . . . 4 . . . Sever 3 | . . . . . . . . . . . 1 . . . . . . 2 . Impale 3 | . . . . . . . . . . 1 1 . . 1 . . . . . Melee Attacks 168 | . 5 . . . 13 18 . 56 . 4 14 5 3 16 . 16 4 11 3 Impact 95 | . . . . . 2 18 . 48 . . . . . . . 16 4 4 3 Slashing 46 | . 5 . . . 11 . . . . . 2 5 3 13 . . . 7 . Piercing 27 | . . . . . . . . 8 . 4 12 . . 3 . . . . . Sneak Attacks 21 | . . . . . . 4 . . . . . . . 3 . 14 . . . Combat Hostiles . | . . . . . . . . . . . . . . . . . . . . Follow-up Attacks 1 | . . . . . . . . . . . 1 . . . . . . . . Damage Inflicted 29504 | 114 1512 435 . . 1342 447 368 1696 966 2117 9898 799 731 1521 1052 2262 1812 1384 1048 Guns 10568 | 108 720 84 . . 1322 76 272 356 110 918 3377 167 285 826 755 638 . . 554 Cannons 9264 | . . . . . . . . 60 . 324 4973 158 280 320 297 83 1812 640 317 Explosions 5222 | . 792 351 . . . . 96 237 856 591 1182 388 166 . . . . 563 . Melee 4046 | . . . . . 20 371 . 1043 . 284 243 . . 363 . 1541 . 181 . Ramming 183 | 6 . . . . . . . . . . . . . . . . . . 177 Kinetic 12430 | 54 361 . . . 1266 . . 221 . 324 5922 158 565 152 378 439 1708 11 871 Thermal 5261 | 54 359 84 . . 56 76 309 195 257 961 1092 . 23 686 377 199 104 429 . Explosive 3632 | . 792 351 . . . . . 237 . 548 1182 388 . . . . . 134 . Electromagnetic 3743 | . . . . . . . 59 . 709 . 1336 167 143 320 297 83 . 629 . Impact 2975 | . . . . . 20 371 . 1043 . . . . . . . 1541 . . . Slashing 739 | . . . . . . . . . . . 161 86 . 311 . . . 181 . Piercing 541 | . . . . . . . . . . 284 205 . . 52 . . . . . Highest Corruption 45 | . . . . . . . 2 1 . . 5 5 3 3 3 3 3 13 45 Average Corruption 3 | . . . . . . . 1 1 . . 3 5 2 3 3 2 2 7 17 Corruption Purged 4 | . . . . . . . . 1 . . . . . . . 3 . . . Corruption Blocked . | . . . . . . . . . . . . . . . . . . . . Effects 178 | . . . . . . . 25 4 . . 66 11 . 35 7 3 5 2 20 Message Errors 45 | . . . . . . . 10 2 . . 16 1 . 10 2 1 1 . 2 Matter Fused 44 | . . . . . . . 10 . . . 15 2 . 8 1 . . 1 7 Heat Flow Errors 24 | . . . . . . . . 2 . . 12 2 . 3 1 1 2 . 1 Energy Discharges 22 | . . . . . . . 2 . . . 8 1 . 5 3 . . . 3 Parts Rejected 4 | . . . . . . . . . . . 1 1 . 1 . 1 . . . Parts Fused 1 | . . . . . . . . . . . . . . 1 . . . . . Data Loss (minor) 15 | . . . . . . . . . . . 5 1 . 3 . . 2 1 3 Data Loss (major) 10 | . . . . . . . 2 . . . 4 1 . 3 . . . . . Misfires 1 | . . . . . . . 1 . . . . . . . . . . . . Alerts 3 | . . . . . . . . . . . 2 . . 1 . . . . . Misdirections 2 | . . . . . . . . . . . . . . . . . . . 2 Weapon Failures 7 | . . . . . . . . . . . 3 2 . . . . . . 2 Overload Shots . | . . . . . . . . . . . . . . . . . . . . Overflow Damage 2074 | . 1 6 . . . 238 . 218 4 283 188 . . 87 . 599 311 139 . Projectiles 584 | . . . . . . . . . . 65 188 . . 7 . 13 311 . . Explosions 239 | . 1 6 . . . . . . 4 89 . . . . . . . 139 . Melee 1251 | . . . . . . 238 . 218 . 129 . . . 80 . 586 . . . Knockbacks 55 | . . . . . . 3 . 3 . 2 20 4 9 . . 9 5 . . Impact 13 | . . . . . . 3 . 3 . . . . . . . 7 . . . Kinetic 40 | . . . . . . . . . . 2 20 4 9 . . . 5 . . Secondary 2 | . . . . . . . . . . . . . . . . 2 . . . Self-Inflicted Damage 670 | . 47 29 . . . . 14 . 5 77 45 . . . . . . 281 172 Shots 15 | . 4 1 . . . . 1 . 1 2 2 . . . . . . 4 . Rammed 7 | 2 . . . . . 2 . . . . . . . . . . . . 3 Targets Rammed 7 | 2 . . . . . 2 . . . . . . . . . . . . 3 Kicked . | . . . . . . . . . . . . . . . . . . . . Crushed . | . . . . . . . . . . . . . . . . . . . . Highest Temperature 445 | . 103 62 . . 182 111 378 219 277 92 312 445 156 367 319 170 359 152 255 Average Temperature 91 | . 33 25 . . 63 38 143 84 109 30 88 216 61 120 158 45 118 55 66 Received Heat Transfer 2312 | . 333 99 . . 360 126 210 190 54 117 198 . 54 256 . . 162 153 . Effects 7 | . . . . . . . 2 1 . . 2 . . 1 . . 1 . . Shutdowns 1 | . . . . . . . 1 . . . . . . . . . . . . Energy Bleed 5 | . . . . . . . 1 1 . . 2 . . 1 . . . . . Interference 1 | . . . . . . . . . . . . . . . . . 1 . . Siege Activations . | . . . . . . . . . . . . . . . . . . . . Robots Corrupted 19 | . . . . . . 4 . 2 1 . 2 . . . 1 6 . 3 . Combat Hostiles 8 | . . . . . . . . 2 1 . 1 . . . 1 . . 3 . Parts Fried 42 | . . . . . . 4 . 3 6 . 9 2 1 . 2 12 . 3 . Impact Corruptions 44 | . . . . . . 9 . 12 . . . . . . . 23 . . . Robots Melted 1 | . . . . . . . . . . . . . . 1 . . . . . Combat Hostiles 1 | . . . . . . . . . . . . . . 1 . . . . . Parts Melted 15 | . 2 . . . . . 5 . . . 4 . . 4 . . . . . Heat Transferred 8222 | 125 1073 247 . . 111 148 618 . 50 1234 2590 . 50 666 703 333 74 200 . Parts Sabotaged 3 | . . . . . . . . . . . . . . . . . . 3 . Parts Stolen . | . . . . . . . . . . . . . . . . . . . . Parts Stripped . | . . . . . . . . . . . . . . . . . . . . Power Chain Reactions 5 | . . . . . . . 1 . 2 1 . . 1 . . . . . . Alert | -11 -10 -10 -10 -9 -8 -8 -8 -6 -6 -6 -6 -5 -5 -5 -5 -5 -5 -4 -4 ------- Run | Yrd Mat Min Exi Min Mat Sto Rec Fac Low Low Zio Pro Fac Ext Cet Arc Hub Fac Was Peak Influence 681 | 15 245 192 . . 300 525 85 362 . . . . 479 668 545 351 257 681 222 Initial 369 | . 9 73 . . . 93 58 316 . . . . 163 234 369 135 . 125 220 Average 143 | 6 114 140 . . 190 200 22 257 . . . . 329 171 461 108 93 314 169 Maximum Alert Level 2 | . 1 . . . 1 2 . 1 . . . . 2 2 2 1 1 2 1 Low Security (%) 74 | 100 93 100 . 100 60 74 100 23 . . . . 9 70 . 81 93 59 80 Level 1 19 | . 6 . . . 39 10 . 76 . . . . 62 16 9 18 6 1 19 Level 2 6 | . . . . . . 15 . . . . . . 28 12 90 . . 39 . Level 3 . | . . . . . . . . . . . . . . . . . . . . Level 4 . | . . . . . . . . . . . . . . . . . . . . Level 5 . | . . . . . . . . . . . . . . . . . . . . High Security . | . . . . . . . . . . . . . . . . . . . . Max Security . | . . . . . . . . . . . . . . . . . . . . Squads Dispatched 26 | . 2 . . . 3 3 . 3 . . . . 2 3 . . 3 7 . Investigation 7 | . 2 . . . 2 . . 1 . . . . . . . . 2 . . Extermination 6 | . . . . . . . . 2 . . . . 1 . . . 1 2 . Reinforcement 6 | . . . . . 1 2 . . . . . . 1 2 . . . . . Assault 3 | . . . . . . . . . . . . . . 1 . . . 2 . Garrison 4 | . . . . . . 1 . . . . . . . . . . . 3 . Intercept . | . . . . . . . . . . . . . . . . . . . . Searches Triggered . | . . . . . . . . . . . . . . . . . . . . Construction Impeded 1 | . . . . . . . . . . . . . . 1 . . . . . Haulers Reinforced 1 | . . . . . . . . . . . . . 1 . . . . . . Active Scanning Responses . | . . . . . . . . . . . . . . . . . . . . Cargo Convoy Interrupts . | . . . . . . . . . . . . . . . . . . . . Stealth | -11 -10 -10 -10 -9 -8 -8 -8 -6 -6 -6 -6 -5 -5 -5 -5 -5 -5 -4 -4 --------- Run | Yrd Mat Min Exi Min Mat Sto Rec Fac Low Low Zio Pro Fac Ext Cet Arc Hub Fac Was Distress Signals 13 | . 1 . . . 3 3 . . . . . . . 1 2 . 1 2 . Communications Jammed 11 | . . . . . . . . . . . . . 1 10 . . . . . Distress Signals 11 | . . . . . . . . . . . . . 1 10 . . . . . Times Spotted 354 | . 20 5 . . 25 18 7 15 14 14 111 12 9 36 11 13 17 22 5 Peak Tracking Total 14 | . 5 3 . . 4 8 4 3 4 4 4 5 4 14 5 2 3 10 5 Tactical Retreats 20 | . 1 . . . 3 1 . . . 4 7 1 . . . . 1 2 . Traps | -11 -10 -10 -10 -9 -8 -8 -8 -6 -6 -6 -6 -5 -5 -5 -5 -5 -5 -4 -4 ------- Run | Yrd Mat Min Exi Min Mat Sto Rec Fac Low Low Zio Pro Fac Ext Cet Arc Hub Fac Was Traps Triggered 5 | . 3 . . . . . . . . . . . . 1 . . . 1 . Indirectly . | . . . . . . . . . . . . . . . . . . . . Trap Hack Attempts . | . . . . . . . . . . . . . . . . . . . . Triggered . | . . . . . . . . . . . . . . . . . . . . Disarmed . | . . . . . . . . . . . . . . . . . . . . Reprogrammed . | . . . . . . . . . . . . . . . . . . . . Reused . | . . . . . . . . . . . . . . . . . . . . Traps Extracted . | . . . . . . . . . . . . . . . . . . . . Installed . | . . . . . . . . . . . . . . . . . . . . Triggered 1 | . . . . . . . . . . 1 . . . . . . . . . Machines | -11 -10 -10 -10 -9 -8 -8 -8 -6 -6 -6 -6 -5 -5 -5 -5 -5 -5 -4 -4 ---------- Run | Yrd Mat Min Exi Min Mat Sto Rec Fac Low Low Zio Pro Fac Ext Cet Arc Hub Fac Was Machines Disabled 41 | . . . . . . 3 1 . . . 1 . 4 5 2 2 1 22 . Max in Single Turn 5 | . . . . . . 1 . . . . 1 . 3 1 1 2 1 5 . Garrison Access 1 | . . . . . . 1 . . . . . . . . . . . . . Network Hub 1 | . . . . . . . . . . . . . . . . . 1 . . Machines Repaired . | . . . . . . . . . . . . . . . . . . . . Machines Dismantled 4 | . . . . . . . . . . . . . . 3 1 . . . . Machines Sabotaged . | . . . . . . . . . . . . . . . . . . . . Overloaded Fab Kills . | . . . . . . . . . . . . . . . . . . . . Hacking | -11 -10 -10 -10 -9 -8 -8 -8 -6 -6 -6 -6 -5 -5 -5 -5 -5 -5 -4 -4 --------- Run | Yrd Mat Min Exi Min Mat Sto Rec Fac Low Low Zio Pro Fac Ext Cet Arc Hub Fac Was Machines Accessed 63 | . 6 . 1 . 7 5 12 10 . . . . . 11 2 . 6 3 . Terminals 50 | . 6 . . . 5 4 5 8 . . . . . 11 2 . 6 3 . Fabricators . | . . . . . . . . . . . . . . . . . . . . Repair Stations . | . . . . . . . . . . . . . . . . . . . . Recycling Units 8 | . . . . . 2 . 6 . . . . . . . . . . . . Scanalyzers . | . . . . . . . . . . . . . . . . . . . . Garrison Access 3 | . . . . . . 1 . 2 . . . . . . . . . . . Total Hacks 164 | . 18 . 1 . 18 12 36 25 . . . . . 28 2 . 18 6 . Successful 94 | . 12 . 1 . 14 3 29 10 . . . . . 11 2 . 11 1 . Failed 70 | . 6 . . . 4 9 7 15 . . . . . 17 . . 7 5 . Catastrophic 15 | . 1 . . . 2 1 . 5 . . . . . 1 . . 2 3 . Database Lockouts . | . . . . . . . . . . . . . . . . . . . . Manual 105 | . 17 . 1 . 15 11 23 14 . . . . . 7 2 . 10 5 . Terminals 137 | . 18 . . . 16 10 19 20 . . . . . 28 2 . 18 6 . Fabricators . | . . . . . . . . . . . . . . . . . . . . Repair Stations . | . . . . . . . . . . . . . . . . . . . . Recycling Units 17 | . . . . . 2 . 15 . . . . . . . . . . . . Scanalyzers . | . . . . . . . . . . . . . . . . . . . . Garrison Access 7 | . . . . . . 2 . 5 . . . . . . . . . . . Terminal Hacks 38 | . 1 . 1 . 4 2 6 4 . . . . . 9 2 . 8 1 . Record 5 | . . . . . . . . 2 . . . . . . 2 . 1 . . Robot Analysis 5 | . 1 . . . 2 . 1 . . . . . . . . . 1 . . Open Door 7 | . . . . . . . . . . . . . . 7 . . . . . Level Access Points 1 | . . . . . . . . . . . . . . . . . 1 . . Branch Access Points 1 | . . . . . 1 . . . . . . . . . . . . . . Machine Index 1 | . . . . . . . . . . . . . . . . . 1 . . Alert Level 5 | . . . . . . . 1 . . . . . . 1 . . 2 1 . Unreport Threat 3 | . . . . . . 2 . . . . . . . 1 . . . . . Locate Traps 1 | . . . . . . . . . . . . . . . . . 1 . . Transport Status 1 | . . . . . . . . 1 . . . . . . . . . . . Recall Extermination 1 | . . . . . . . . 1 . . . . . . . . . . . Zone Layout 4 | . . . . . 1 . 2 . . . . . . . . . 1 . . Derelict Proto ID Bank 1 | . . . 1 . . . . . . . . . . . . . . . . Release Object 2 | . . . . . . . 2 . . . . . . . . . . . . Fabricator Hacks . | . . . . . . . . . . . . . . . . . . . . Repair Station Hacks . | . . . . . . . . . . . . . . . . . . . . Recycling Unit Hacks 6 | . . . . . . . 6 . . . . . . . . . . . . Retrieve Components 6 | . . . . . . . 6 . . . . . . . . . . . . Scanalyzer . | . . . . . . . . . . . . . . . . . . . . Garrison Access Hacks 1 | . . . . . . 1 . . . . . . . . . . . . . Seal Access 1 | . . . . . . 1 . . . . . . . . . . . . . Unauthorized Hacks 48 | . 10 . . . 10 . 17 6 . . . . . 2 . . 3 . . Terminals 39 | . 10 . . . 8 . 10 6 . . . . . 2 . . 3 . . Assimilate 3 | . . . . . 1 . . 1 . . . . . . . . 1 . . Botnet 14 | . 3 . . . 2 . 5 . . . . . . 2 . . 2 . . Operators 2 | . 2 . . . . . . . . . . . . . . . . . . Skim 20 | . 5 . . . 5 . 5 5 . . . . . . . . . . . Fabricators . | . . . . . . . . . . . . . . . . . . . . Repair Stations . | . . . . . . . . . . . . . . . . . . . . Recycling Units 9 | . . . . . 2 . 7 . . . . . . . . . . . . Mask 1 | . . . . . . . 1 . . . . . . . . . . . . Tunnel 8 | . . . . . 2 . 6 . . . . . . . . . . . . Scanalyzers . | . . . . . . . . . . . . . . . . . . . . Garrison Access . | . . . . . . . . . . . . . . . . . . . . Data Cores Recovered 3 | . 1 . . . . . . 1 . . . . . . . . . 1 . Used 1 | . 1 . . . . . . . . . . . . . . . . . . Hacking Detections 43 | . 6 . . . 4 4 3 10 . . . . . 6 1 . 6 3 . Full Trace Events 3 | . . . . . . 1 . 1 . . . . . . . . 1 . . Feedback Events 1 | . . . . . . . . . . . . . . . . . 1 . . Corruption 1 | . . . . . . . . . . . . . . . . . 1 . . Feedback Blocked . | . . . . . . . . . . . . . . . . . . . . Robot Schematics Acquired 4 | . . . . . . . . . . . 4 . . . . . . . . Robots Built . | . . . . . . . . . . . . . . . . . . . . Authchips . | . . . . . . . . . . . . . . . . . . . . Time . | . . . . . . . . . . . . . . . . . . . . Total Robot Build Rating . | . . . . . . . . . . . . . . . . . . . . Part Schematics Acquired 15 | . . . . . . . . . . . 15 . . . . . . . . Parts Built . | . . . . . . . . . . . . . . . . . . . . Authchips . | . . . . . . . . . . . . . . . . . . . . Time . | . . . . . . . . . . . . . . . . . . . . Total Part Build Rating . | . . . . . . . . . . . . . . . . . . . . Parts Repaired . | . . . . . . . . . . . . . . . . . . . . Time . | . . . . . . . . . . . . . . . . . . . . Parts Recycled . | . . . . . . . . . . . . . . . . . . . . Recycled Matter . | . . . . . . . . . . . . . . . . . . . . Retrieved Matter . | . . . . . . . . . . . . . . . . . . . . Retrieved Components 9 | . . . . . . . 9 . . . . . . . . . . . . Parts Scanalyzed . | . . . . . . . . . . . . . . . . . . . . Part Schematics Acquired . | . . . . . . . . . . . . . . . . . . . . Parts Damaged . | . . . . . . . . . . . . . . . . . . . . Bothacking | -11 -10 -10 -10 -9 -8 -8 -8 -6 -6 -6 -6 -5 -5 -5 -5 -5 -5 -4 -4 ------------ Run | Yrd Mat Min Exi Min Mat Sto Rec Fac Low Low Zio Pro Fac Ext Cet Arc Hub Fac Was Used RIF Installer . | . . . . . . . . . . . . . . . . . . . . Robots Hacked . | . . . . . . . . . . . . . . . . . . . . Non-combat . | . . . . . . . . . . . . . . . . . . . . Combat . | . . . . . . . . . . . . . . . . . . . . Robot Hacks Applied . | . . . . . . . . . . . . . . . . . . . . Relay Couplers Released . | . . . . . . . . . . . . . . . . . . . . Fabnet Peak Effective % . | . . . . . . . . . . . . . . . . . . . . Robots Rewired 9 | . . . . . . . 5 . . . . . . 4 . . . . . Allies Hacked 1 | . . . . . . . . . . . . . . 1 . . . . . Hacks Repelled . | . . . . . . . . . . . . . . . . . . . . Allies | -11 -10 -10 -10 -9 -8 -8 -8 -6 -6 -6 -6 -5 -5 -5 -5 -5 -5 -4 -4 -------- Run | Yrd Mat Min Exi Min Mat Sto Rec Fac Low Low Zio Pro Fac Ext Cet Arc Hub Fac Was Total Allies 41 | . . 2 . . . 10 5 . . . . . . 17 5 . 1 . 1 Largest Group 16 | . . 2 1 . . 10 5 . . . . . . 16 7 5 1 1 1 Highest-Rated Group 615 | . . 46 31 . . 173 125 . . . . . . 615 536 472 10 10 46 Highest-Rated Ally 159 | . . 31 31 . . 29 34 . . . . . . 159 159 153 10 10 46 Total Orders 5 | . . . . . . . . . . . . . . 4 . 1 . . . STAY 3 | . . . . . . . . . . . . . . 2 . 1 . . . FOLLOW 2 | . . . . . . . . . . . . . . 2 . . . . . Ally Attacks 382 | . . 4 . . . 96 6 . . . . . . 195 51 27 . . 3 Total Damage 7246 | . . 41 . . . 1239 77 . . . . . . 3558 1193 1019 . . 119 Kills 51 | . . 1 . . . 18 1 . . . . . . 21 6 4 . . . Allies Corrupted 3 | . . . . . . . . . . . . . . 1 . 2 . . . Allies Melted . | . . . . . . . . . . . . . . . . . . . . Intel | -11 -10 -10 -10 -9 -8 -8 -8 -6 -6 -6 -6 -5 -5 -5 -5 -5 -5 -4 -4 ------- Run | Yrd Mat Min Exi Min Mat Sto Rec Fac Low Low Zio Pro Fac Ext Cet Arc Hub Fac Was Robot Analysis Total 5 | . 1 . . . 2 . 1 . . . . . . . . . 1 . . Derelict Logs Recovered 5 | . . 2 . 1 . . . . . . 1 1 . . . . . . . Drone Launches . | . . . . . . . . . . . . . . . . . . . . Drone Recoveries . | . . . . . . . . . . . . . . . . . . . . Exploration | -11 -10 -10 -10 -9 -8 -8 -8 -6 -6 -6 -6 -5 -5 -5 -5 -5 -5 -4 -4 ------------- Run | Yrd Mat Min Exi Min Mat Sto Rec Fac Low Low Zio Pro Fac Ext Cet Arc Hub Fac Was Turns Passed 37241 | 108 1129 482 366 317 1102 751 3763 1803 619 756 19391 350 366 1806 402 2042 733 631 324 Spaces Moved 10599 | 53 471 355 326 248 381 261 1362 978 347 538 2695 172 151 777 219 387 414 333 131 Core 51 | 9 23 . . . . 19 . . . . . . . . . . . . . Treads 3471 | 44 370 . . . . 79 1278 135 . . 300 . . 96 212 387 414 156 . Legs 3827 | . . . . . . . 80 98 347 538 2322 172 96 174 . . . . . Wheels 1232 | . 78 355 326 248 73 . 4 . . . . . . 131 7 . . . 10 Hover 1316 | . . . . . 308 163 . 542 . . . . . 5 . . . 177 121 Flight 702 | . . . . . . . . 203 . . 73 . 55 371 . . . . . Fastest Speed 50 | 50 95 95 110 110 130 176 121 72 72 72 72 135 135 142 117 96 96 96 66 Average Speed 153 | 146 165 109 110 122 192 240 224 153 72 75 147 154 165 198 141 96 96 151 107 Slowest Speed 750 | 160 550 110 140 130 236 750 250 233 72 103 204 203 203 244 166 117 96 171 141 Overloaded Moves . | . . . . . . . . . . . . . . . . . . . . Propulsion Burnouts . | . . . . . . . . . . . . . . . . . . . . Robots Hopped . | . . . . . . . . . . . . . . . . . . . . Cave-ins Triggered 3 | . . . . . . . . . . . . . . . . . . . 3 Exploration Rate (%) 50 | 4 77 76 71 50 26 52 98 25 49 51 85 38 5 70 78 89 38 10 15 Regions Visited 19 Branch Regions 13 Pre-discovered Areas 15 | . 2 . . . 3 . 7 3 . . . . . . . . . . . Known Exits Taken 9 | . . . . . 1 1 1 1 1 1 . 1 . . . 1 1 . . Unknown Exits Taken 9 | 1 1 1 1 1 . . . . . . 1 . 1 1 1 . . . . Scrap Searched 13 | . . . . 4 . . . . 2 3 4 . . . . . . . . Spaces Dug 118 | . 8 . . . 7 10 . 18 . 22 15 5 3 6 . . 6 3 15 Terrain Destroyed 716 | . 99 52 . . 19 10 . 38 12 98 135 62 31 7 2 4 41 91 15 Melee 65 | . 2 . . . 7 10 . 18 . . 4 5 3 6 . . 4 3 3 Projectile 117 | . . . . . . . . 5 1 23 29 3 . 1 2 4 37 . 12 AOE 534 | . 97 52 . . 12 . . 15 11 75 102 54 28 . . . . 88 . Terrain Rammed 31 | . . . . . . . . . . . . . . . . . . . 31 Walls Destroyed . | . . . . . . . . . . . . . . . . . . . . Machines Disabled . | . . . . . . . . . . . . . . . . . . . . Actions | -11 -10 -10 -10 -9 -8 -8 -8 -6 -6 -6 -6 -5 -5 -5 -5 -5 -5 -4 -4 --------- Run | Yrd Mat Min Exi Min Mat Sto Rec Fac Low Low Zio Pro Fac Ext Cet Arc Hub Fac Was Total 30121 | 68 710 429 333 261 630 331 2059 1150 684 808 17659 222 224 930 268 1990 702 413 250 Wait 18082 | 1 154 51 . . 149 25 637 63 312 219 14509 21 39 46 6 1560 241 31 18 Move 10582 | 53 470 354 325 247 380 260 1361 977 346 537 2694 171 150 776 218 386 413 333 131 Hop . | . . . . . . . . . . . . . . . . . . . . Pick Up 97 | 1 7 1 3 5 11 3 9 12 1 4 13 1 3 7 6 6 1 2 1 Fast Attach 33 | 6 3 3 1 . 4 1 3 2 . . 5 . . 1 1 1 . 2 . Attach 38 | . 1 2 . . 3 1 4 4 . . 8 3 1 1 1 . . 7 2 Detach 24 | . . . 1 . . . 8 2 . . 3 1 1 1 1 . . 2 4 Swap 100 | 1 6 3 1 5 17 11 4 8 4 3 11 3 1 4 5 6 4 3 . Drop 73 | . 1 2 2 4 11 4 14 10 . 1 8 . 1 8 4 1 . 1 1 Fire 833 | 5 63 13 . . 42 6 17 16 21 39 396 17 25 25 18 14 39 21 56 Melee 166 | . 5 . . . 13 18 . 56 . 4 12 5 3 16 . 16 4 11 3 Ram 36 | . . . . . . 2 . . . . . . . . . . . . 34 Kick . | . . . . . . . . . . . . . . . . . . . . Crush 1 | 1 . . . . . . . . . . . . . . . . . . . Escape Stasis . | . . . . . . . . . . . . . . . . . . . . Rewire 23 | . . . . . . . 2 . . 1 . . . 20 . . . . . Trap . | . . . . . . . . . . . . . . . . . . . . Miscellaneous 33 | . . . . . . . . . . . . . . 25 8 . . . . Route ------- -11/Scrapyard -10/Materials (discovered 5 exits: *Mat x3 / [*Min] / [*Sub]) -10/Mines (discovered 2 exits: *Mat / *Exi) -10/Exiles -9/Mines -8/Materials (discovered 2 exits: *Sto x2) -8/Storage (discovered 2 exits: Fac / *Rec) -8/Recycling -6/Factory (discovered 6 exits: *Fac x4 / *Low x2) -6/Lower Caves -6/Lower Caves (discovered 2 exits: Fac / *Zio) -6/Zion -5/Proximity Caves -5/Factory (discovered 6 exits: Fac x4 / Upp / *Ext) -5/Extension (discovered 2 exits: *Fac / *Cet) -5/Cetus (discovered 2 exits: *Fac / *Arc) -5/Archives (discovered 3 exits: *Fac / *Hub x2) -5/Hub_04(d) (discovered 4 exits: *Fac x4) -4/Factory -4/Waste History --------- Turn | Location | Event 9 | -11/Scrapyard | Discovered new exit (range 15) 109 | -11/Scrapyard | Entered Materials 306 | -10/Materials | Build established: Mutant 592 | -10/Materials | Discovered new exit (range 8) 712 | -10/Materials | Discovered new exit (range 12) 894 | -10/Materials | Learned 4 Subcaves zone layouts 907 | -10/Materials | Discovered new exit (range 16) 996 | -10/Materials | Identified exit to Materials 1033 | -10/Materials | Learned Storage trap positions 1060 | -10/Materials | Learned location of 1 exit from Storage 1075 | -10/Materials | Learned 4 Recycling zone layouts 1082 | -10/Materials | Learned 2 Materials zone layouts 1101 | -10/Materials | Discovered new exit (range 8) 1125 | -10/Materials | Learned location of Mines (-10) 1207 | -10/Materials | Learned location of Recycling (-8) 1238 | -10/Materials | Entered Mines 1258 | -10/Mines | Core integrity fell below 50% 1290 | -10/Mines | Lost 4 parts (1n1u2w) 1441 | -10/Mines | Learned Materials terminal intel 1550 | -10/Mines | Discovered exit to Materials (range 7) 1608 | -10/Mines | Learned Materials terminal intel 1713 | -10/Mines | Deemed a non-threat by the Exiles lab entrance 1714 | -10/Mines | Discovered new exit (range 5) 1720 | -10/Mines | Entered Exiles 1720 | -10/Exiles | Accompanied by 1 ally 1747 | -10/Exiles | Met 8R-AWN 1750 | -10/Exiles | Led the pair of lost Derelicts to a safe place 1767 | -10/Exiles | Met EX-HEX 1795 | -10/Exiles | Met EX-BIN 1811 | -10/Exiles | Aligned with FarCom system 1812 | -10/Exiles | Given EX-Vault access code 1845 | -10/Exiles | Opened EX-Vault 1851 | -10/Exiles | Found Cloak of Protection 1878 | -10/Exiles | Warned to stay clear of 0b10 Research branches 1963 | -10/Exiles | Met EX-DEC 2075 | -10/Exiles | Discovered new exit (range 10) 2086 | -10/Exiles | Left Exiles lab with Cloak of Protection 2086 | -10/Exiles | Entered Mines 2098 | -9/Mines | Met a Derelict bent on vengeance 2165 | -9/Mines | Found a damaged Exp. Sensor Array with a note attached 2167 | -9/Mines | Found Prototype Device 2221 | -9/Mines | Learned Materials stockpile data 2327 | -9/Mines | Discovered new exit (range 14) 2403 | -9/Mines | Entered Materials 2403 | -8/Materials | Evolved 4 slots: Utility x3, Weapon x1 2404 | -8/Materials | Identified exit to Storage 2407 | -8/Materials | Loaded intel: 12 terminal locations 2713 | -8/Materials | Build established: Derelict-Skirmisher 2821 | -8/Materials | Discovered exit to Storage (range 11) 3357 | -8/Materials | Learned Factory machine intel 3399 | -8/Materials | Learned Storage trap positions 3432 | -8/Materials | Learned Factory trap positions 3498 | -8/Materials | Learned location of 1 exit from Lower Caves 3505 | -8/Materials | Entered Storage 3506 | -8/Storage | Identified exit to Factory 3507 | -8/Storage | Identified exit to Recycling 3508 | -8/Storage | Loaded intel: 19 trap records 3708 | -8/Storage | Assisted by bots powering up and referring to "LRC-V3" 3787 | -8/Storage | Garrison activated, responded to threat 3892 | -8/Storage | Lost 7 allies 4176 | -8/Storage | Used back door to open Recycling access 4256 | -8/Storage | Entered Recycling 4257 | -8/Recycling | Identified exit to Factory 4336 | -8/Recycling | Build established: Hacker-Assassin 4379 | -8/Recycling | Scanned before Scraplab entrance 5071 | -8/Recycling | Build established: Hacker-Mutant 5521 | -8/Recycling | Learned 2 Lower Caves zone layouts 5566 | -8/Recycling | Learned Factory emergency access door positions 5631 | -8/Recycling | Learned 8 Factory zone layouts 5675 | -8/Recycling | Learned Factory trap positions 5713 | -8/Recycling | Learned location of Extension (-5) 6231 | -8/Recycling | Entered Scraplab 6243 | -8/Recycling | Angered Scraplab inhabitants 6254 | -8/Recycling | Found Prototype Device 6254 | -8/Recycling | Identified Scrap Engine 6289 | -8/Recycling | Lost 5 allies 6790 | -8/Recycling | Build established: Mutant 7978 | -8/Recycling | Build established: Construct 8019 | -8/Recycling | Entered Factory 8019 | -6/Factory | Evolved 4 slots: Power x1, Propulsion x2, Utility x1 8020 | -6/Factory | Identified exit to Factory 8022 | -6/Factory | Loaded intel: 84 trap records 8024 | -6/Factory | Loaded intel: 242 machine locations 8330 | -6/Factory | Build established: Mutant 8867 | -6/Factory | Learned location of Lower Caves (-6) 8965 | -6/Factory | Learned location of Zion (-6) 9002 | -6/Factory | Learned location of 1 exit from Hub_04(d) 9029 | -6/Factory | Identified exit to Lower Caves 9044 | -6/Factory | Build established: Construct 9048 | -6/Factory | Learned location of Warlord (-4) 9117 | -6/Factory | Learned Factory trap positions 9822 | -6/Factory | Entered Lower Caves 9823 | -6/Lower Caves | Identified exit to Lower Caves 10079 | -6/Lower Caves | Attracted the attention of an 0b10 checkpoint 10441 | -6/Lower Caves | Entered another Lower Caves area 10443 | -6/Lower Caves | Identified exit to Zion 10476 | -6/Lower Caves | Spotted B-75 Beast 10782 | -6/Lower Caves | Attracted the attention of an 0b10 checkpoint 11197 | -6/Lower Caves | Entered Zion 11208 | -6/Zion | Learned Factory terminal intel 11281 | -6/Zion | Found Prototype Special Weapon 11288 | -6/Zion | Identified Exp. Sensor Array 11294 | -6/Zion | Found Prototype Special Weapon 11298 | -6/Zion | Identified RU-N14's Throwing Claymores (x2) 11308 | -6/Zion | Discovered new exit (range 12) 25051 | -6/Zion | Attacked by Zionites 25051 | -6/Zion | Spotted ID-D0U(B) 25079 | -6/Zion | Core integrity fell below 50% 25102 | -6/Zion | Found RU-N14's Throwing Claymores 25135 | -6/Zion | Destroyed ID-D0U(B) 25212 | -6/Zion | Found RU-N14's Throwing Claymores 27641 | -6/Zion | Core integrity fell below 20% 30588 | -6/Zion | Entered Proximity Caves 30793 | -5/Proximity Caves | Learned Factory emergency access door positions 30897 | -5/Proximity Caves | Attracted the attention of an 0b10 checkpoint 30938 | -5/Proximity Caves | Entered Factory 30938 | -5/Factory | Evolved 2 slots: Propulsion x1, Weapon x1 30939 | -5/Factory | Identified exit to Factory 30939 | -5/Factory | Identified exit to Upper Caves 30940 | -5/Factory | Loaded intel: 84 trap records 30942 | -5/Factory | Loaded intel: 27 terminal locations 31287 | -5/Factory | Discovered new exit (range 11) 31304 | -5/Factory | Entered Extension 31725 | -5/Extension | Rescued a captive Derelict 31738 | -5/Extension | Rescued a captive Derelict 32015 | -5/Extension | Rescued A7 32054 | -5/Extension | Rescued a captive Derelict 32092 | -5/Extension | Rescued a captive Derelict 32102 | -5/Extension | Rescued a captive Derelict 32135 | -5/Extension | Rescued a captive Derelict 32137 | -5/Extension | Rescued a captive Derelict 32201 | -5/Extension | Rescued a captive Derelict 32238 | -5/Extension | Rescued a captive Derelict 32263 | -5/Extension | Rescued a captive Derelict 32447 | -5/Extension | Rescued a captive Derelict 32455 | -5/Extension | Rescued a captive Derelict 32680 | -5/Extension | Build established: Commander-Construct 32755 | -5/Extension | Spotted B-75 Beast 32777 | -5/Extension | Spotted B-75 Beast 32789 | -5/Extension | Allies destroyed B-75 Beast 32793 | -5/Extension | Destroyed B-75 Beast 32804 | -5/Extension | Disrupted transfer network 32823 | -5/Extension | Lost 4 allies 33024 | -5/Extension | Discovered exit to Factory (range 16) 33024 | -5/Extension | Discovered new exit (range 16) 33058 | -5/Extension | Build established: Construct 33104 | -5/Extension | First assault squad dispatched 33108 | -5/Extension | Disrupted transfer network 33110 | -5/Extension | Entered Cetus 33110 | -5/Cetus | Accompanied by 7 allies (A7) 33115 | -5/Cetus | Acquired a Cetus Manufacturing Module code from A7 33132 | -5/Cetus | Spotted Cetus Guard 33132 | -5/Cetus | Spotted Cetus Guard 33134 | -5/Cetus | Spotted Cetus Guard 33136 | -5/Cetus | Allies destroyed Cetus Guard 33141 | -5/Cetus | Allies destroyed Cetus Guard 33146 | -5/Cetus | Destroyed Cetus Guard 33149 | -5/Cetus | Spotted Cetus Guard 33158 | -5/Cetus | Destroyed Cetus Guard 33176 | -5/Cetus | Lost 5 allies 33297 | -5/Cetus | Started Cetus Manufacturing Module 33322 | -5/Cetus | Manufactured an Enhanced Grunt 33333 | -5/Cetus | Escorted A7 to Cetus Mainframe 33347 | -5/Cetus | Manufactured an Enhanced Grunt 33353 | -5/Cetus | Discovered new exit (range 15) 33372 | -5/Cetus | Manufactured an Enhanced Grunt 33376 | -5/Cetus | Spotted Cetus Guard 33376 | -5/Cetus | Spotted Cetus Guard 33380 | -5/Cetus | Allies destroyed Cetus Guard 33380 | -5/Cetus | Allies destroyed Cetus Guard 33382 | -5/Cetus | Spotted Cetus Guard 33382 | -5/Cetus | Spotted Cetus Guard 33395 | -5/Cetus | Destroyed Cetus Guard 33397 | -5/Cetus | Manufactured an Enhanced Grunt 33404 | -5/Cetus | Allies destroyed Cetus Guard 33413 | -5/Cetus | Discovered exit to Factory (range 16) 33419 | -5/Cetus | Met Revision 17 33422 | -5/Cetus | Manufactured an Enhanced Grunt 33430 | -5/Cetus | Lost 4 allies 33459 | -5/Cetus | Found Prototype Device 33459 | -5/Cetus | Identified Exp. Thermal Shield 33476 | -5/Cetus | Found Exp. Thermal Shield 33512 | -5/Cetus | Entered Archives 33512 | -5/Archives | Accompanied by 5 allies (A7) 33513 | -5/Archives | Identified exit to Hub_04(d) 33517 | -5/Archives | Received a hacking code to weaken MAIN.C 33590 | -5/Archives | Unable to access archive contents 33851 | -5/Archives | Discovered exit to Factory (range 13) 33864 | -5/Archives | Discovered exit to Hub_04(d) (range 14) 33991 | -5/Archives | Murdered 3 allies 35306 | -5/Archives | Build established: Hacker-Construct 35554 | -5/Archives | Entered Hub_04(d) 35949 | -5/Hub_04(d) | Network Hub disabled 36115 | -5/Hub_04(d) | Build established: Construct 36285 | -5/Hub_04(d) | Spotted Lightning 36287 | -5/Hub_04(d) | Entered Factory 36287 | -4/Factory | Accompanied by 1 ally 36287 | -4/Factory | Evolved 2 slots: Utility x2 36288 | -4/Factory | Loaded intel: 88 trap records 36821 | -4/Factory | First assault squad dispatched 36883 | -4/Factory | System corruption reached 10% 36918 | -4/Factory | Sucked down chute 36918 | -4/Factory | Entered Waste 36919 | -4/Waste | Met a frightened Derelict 36947 | -4/Waste | Lost 7 parts (2p5w) 36957 | -4/Waste | Spotted C-40 Crusher 36968 | -4/Waste | Spotted C-40 Crusher 36979 | -4/Waste | Crushed by falling debris 36980 | -4/Waste | Crushed by Compactor (1 part destroyed, 1 dropped) 36983 | -4/Waste | Crushed by Compactor (1 part destroyed, 1 dropped) 37011 | -4/Waste | Spotted C-40 Crusher 37014 | -4/Waste | Lost 3 parts (1n1u1w) 37066 | -4/Waste | Spotted C-40 Crusher 37100 | -4/Waste | Crushed by falling debris 37103 | -4/Waste | Crushed by Compactor (0 parts destroyed, 1 dropped) 37157 | -4/Waste | Spotted C-40 Crusher 37184 | -4/Waste | Crushed by falling debris 37213 | -4/Waste | Core integrity fell below 50% 37224 | -4/Waste | System corruption reached 30% 37235 | -4/Waste | Core integrity fell below 20% 37242 | -4/Waste | Destroyed by C-40 Crusher with Compactor Last Messages --------------- 37233_ Destabilizing: System corrupted (+2). 37234_ Slammed into Earth. 37234_ Destabilizing: System corrupted (+1). 37234_ Destabilizing: Core damaged (-23). 37235_ Slammed into Earth. 37235_ Destabilizing: System corrupted (+1). 37236_ Slammed into Earth. 37236_ Destabilizing: Core damaged (-46). 37237_ System corrupted: Matter fused (-9). 37237_ Slammed into Earth. 37237_ Destabilizing: System corrupted (+1). 37237_ Destabilizing: Core damaged (-46). 37238_ Slammed into Earth. 37238_ Destabilizing: Core damaged (-23). 37239_ Critical hit (Destroy). 37239_ Arm. Scrap Engine destroyed. 37239_ Scrap Engine core remains intact and functional. 37239_ Slammed into Earth. 37240_ Destabilizing: Core damaged (-23). 37241_ Slammed into Earth. Map ----- +----------------------------------------------------+ | ?????????????????????????????????????????????????? | | ?????????????????????????????????????????????????? | | ?????????????????????????????????????????????????? | | ?????????????????????????????????????????????????? | | ?????????????????????????????????????????????????? | | ?????????????????????????????????????????????????? | | ?????????????????????????????????????????????????? | | ?????????????????????????????????????????????????? | | ?????????????????????????????????????????????????? | | ?????????????????????????????????????????????????? | | ?????????????????????????????????????????????????? | | ?????????????????????????????????????????????????? | | ?????????????????????????????????????????????????? | | ?????????????????????????????????????????????????? | | ?????????????????????????????????????????????????? | | ?????????????????????????????????????????????????? | | ?????????????????????????????????????????????????? | | ?????????????????????????????##??????????????????? | | ????????????????????????????# #??????????????????? | | ???????????????????????????# #???????????????????? | | ??????????????????????????# #????????????????????? | | ?????????????????????????# #?????????????????????? | | ???????????????????????## #??????????????????????? | | ??????????????????????## ##??????????????????????? | | ?????????????????????##!######???????????????????? | | ????????????????????## ##@ #???????????????????? | | ??????????###########"### CC #???????????????????? | | ??????????# ##?# CC #???????????????????? | | ??????????# #??#CCCC#???????????????????? | | ??????????# ####CCCC#???????????????????? | | ??????????# CCCC ?????????????????? | | ??????????# CCCC ????????????????? | | ??????????# ???????????????? | | ??????????# ?????????????? | | ??????????# #### ########????????????? | | ??????????# #??# #???????????????????? | | ??????????# #??# #???????????????????? | | ??????????############??# #???????????????????? | | ????????????????????????# #???????????????????? | | ???????????????????????? #???????????????????? | | ????????????????????????? #???????????????????? | | ????????????????????????? #???????????????????? | | ????????????????????????? ?????????????????????? | | ?????????????????????????????????????????????????? | | ?????????????????????????????????????????????????? | | ?????????????????????????????????????????????????? | | ?????????????????????????????????????????????????? | | ?????????????????????????????????????????????????? | | ?????????????????????????????????????????????????? | | ?????????????????????????????????????????????????? | +----------------------------------------------------+ Best States ------------- Heat Dissipation 105 Coolant Potential 65 Energy Generation 71 Energy Capacity 816 Matter Stores 300 Matter Capacity 300 Sight Range 16 Robot Scan Range 20 Terrain Scan Range 16 Terrain Scan Density 10 Jamming Range 12 Cloak Strength 5 Power Amplification 20 Armor Coverage 450 Resistance: TH 30 Weapon Cycling 20 Evasion (%) 60 Targeting Accuracy 8 Melee Accuracy 13 Target Analysis 6 Core Analysis 9 Recoil Reduction 5 Matter Filtering 30 Kinecelleration 40 Offensive Hacking 24 Defensive Hacking 20 Item Schematics ----------------- Imp. Thermal Generator | -6/Zion | Archive Imp. Weapon Cycler | -6/Zion | Archive Enh. Optical Array | -6/Zion | Archive Neutrino Core | -6/Zion | Archive Imp. Reaction Control System | -6/Zion | Archive Adv. Hacking Suite | -6/Zion | Archive Hvy. Plasma Cannon | -6/Zion | Archive Railgun | -6/Zion | Archive Imp. Antigrav System | -6/Zion | Archive Hvy. Machine Gun | -6/Zion | Archive Hvy. Treads | -6/Zion | Archive Imp. Medium Treads | -6/Zion | Archive Imp. Focal Shield | -6/Zion | Archive Imp. Hacking Suite | -6/Zion | Archive Adv. Field Recycling Unit | -6/Zion | Archive Robot Schematics ------------------ H-66 Slayer | -6/Zion | Archive L-41 Fighter | -6/Zion | Archive K-01 Serf | -6/Zion | Archive L-61 Swordsman | -6/Zion | Archive Fabricated ------------ Nothing Alien Tech Used ----------------- None Achievements -------------- None Challenges ------------ None Game ------ Seed SigixChainShockpuncher Manual? 0 Play Time 02:50:45 Cumulative 283.4 hours Start 2024.10.01 @ 17:18:53 End 2024.10.01 @ 20:12:05 Sessions 1 Manual Loads 0 Difficulty Rogue Special Mode None Game No. 228 Rogue 228 Adventurer 0 Explorer 0 Win Type - Total 2 Types 1/0/0/1/0/0/0/0/0 Lore% 73 Gallery% 78 Achievement% 58 Wizard Run 0 Options --------- Layout 2 ASCII 0 Keyboard 1 Movement Vi Keybinds 0 Fullscreen 1 Font 32/SmallcapsGlow Map View 77x44 Zoom Use 0% Tactical HUD 1 Map Filters NONE Filters NONE Steam 1 RUN: f6d5a01d-bb2c-463d-abad-5f6246aeed3b